bitfinex-derivatives/quotes_SOLF0:USTF0_20241016
["timestamp","ask_amount","ask_price","bid_price","bid_amount"]
[1729096030437,15.48,155.12,155.03,18.74509304]
[1729096030629,5.24,155.11,155.03,18.74509304]
[1729096031132,3.2251,155.06,155.03,21.97059304]
[1729096031336,5.24,155.11,155.03,18.74509304]
[1729096031636,3.225,155.07,155.04,3.2252]
[1729096032236,5.24,155.11,155.05,15.48]
[1729096032536,70.6517,155.17,155.05,15.48]
[1729096032537,5.24,155.13,155.05,15.48]
[1729096032736,3.2243,155.1,155.07,3.2247]
[1729096033128,5.24,155.13,155.07,15.48]
[1729096033335,3.2239,155.12,155.09,3.2242]
[1729096033540,3.2239,155.12,155.09,18.7042]
[1729096034141,3.2239,155.12,155.1,3.2241]
[1729096034437,3.2242,155.1,155.09,1.4468]
[1729096036441,3.2242,155.1,155.07,18.7047]
[1729096037636,15.48,155.12,155.04,2.8679]
[1729096038039,3.2252,155.05,155.04,2.8679]
[1729096038642,3.2251,155.06,155.04,2.8679]
[1729096040137,3.2252,155.05,155.04,2.8679]
[1729096043542,3.2254,155.04,155.03,3.26509304]
[1729096043747,15.48,155.08,154.99,15.48]
[1729096044047,15.48,155.06,154.96,15.48]
[1729096044350,5.24,155.05,154.96,15.48]
[1729096044740,5.24,155.05,154.97,3.2267]
[1729096045746,5.24,155.05,154.98,3.2266]
[1729096046042,5.24,155.05,154.96,15.48]
[1729096046439,5.24,155.05,155.0,15.48]
[1729096048051,3.2259,155.02,155.0,15.48]
[1729096048636,5.24,155.07,155.0,20.72]
[1729096048853,5.24,155.1,155.03,15.48]
[1729096049148,5.24,155.1,155.03,18.6491447]
[1729096049648,5.24,155.1,155.05,15.48]
[1729096050151,3.2248,155.08,155.06,3.225]
[1729096050348,5.24,155.1,155.06,3.225]
[1729096051459,3.2244,155.09,155.06,3.225]
[1729096052060,3.2246,155.08,155.06,3.225]
[1729096053655,3.2246,155.08,155.05,18.7052]
[1729096053857,5.24,155.1,155.03,18.6491447]
[1729096054058,5.24,155.1,155.03,15.48]
[1729096054658,5.24,155.1,155.03,18.76572634]
[1729096055248,15.48,155.09,155.03,3.28572634]
[1729096055453,15.48,155.09,155.01,1.4462]
[1729096055858,15.48,155.09,155.01,4.71966978]
[1729096056262,15.48,155.09,155.01,3.27346978]
[1729096056559,15.48,155.08,154.98,15.48]
[1729096056764,15.48,155.08,154.98,18.7066]
[1729096056959,15.48,155.08,154.98,15.48]
[1729096057162,15.48,155.08,154.97,6.6533]
[1729096057364,1.1808,155.07,154.97,6.6533]
[1729096057564,5.24,155.06,154.97,6.6533]
[1729096057869,15.48,155.05,154.97,6.6533]
[1729096058061,5.24,155.06,154.97,6.6533]
[1729096058563,3.2262,155.0,154.97,9.8801]
[1729096059259,5.24,155.06,154.97,9.8801]
[1729096059463,3.2265,154.99,154.97,9.8801]
[1729096059865,3.2265,154.99,154.97,4.6401]
[1729096062078,3.226,155.02,154.98,15.48]
[1729096062264,5.54086573,155.01,154.98,15.48]
[1729096062573,3.226,155.02,154.99,3.2264]
[1729096062760,5.54044371,155.01,154.99,3.2264]
[1729096062958,3.226,155.02,154.99,3.2264]
[1729096063167,3.226,155.02,154.99,3.2263]
[1729096063769,3.226,155.02,155.0,3.2262]
[1729096064067,3.226,155.02,154.98,15.48]
[1729096064256,3.226,155.02,154.99,3.2264]
[1729096064456,5.24,155.04,154.97,1.4133]
[1729096064661,5.24,155.04,154.96,15.48]
[1729096064858,5.24,155.04,154.96,16.9336]
[1729096065063,5.24,155.04,154.98,3.2265]
[1729096066471,3.2263,155.0,154.98,3.2265]
[1729096067756,3.2267,154.98,154.96,16.9336]
[1729096068361,3.2267,154.98,154.96,20.1607]
[1729096068565,3.2264,155.0,154.96,16.9336]
[1729096068763,15.48,155.09,154.99,15.48]
[1729096069063,5.24,155.08,154.99,15.48]
[1729096069571,3.2262,155.01,154.99,15.48]
[1729096069962,3.2262,155.0,154.99,15.48]
[1729096072275,5.24,155.08,154.99,15.48]
[1729096072870,21.9296,155.07,154.96,16.9336]
[1729096073073,3.2263,155.0,154.97,3.2267]
[1729096074259,3.2263,155.0,154.98,3.2266]
[1729096074462,3.2263,155.0,154.98,18.7066]
[1729096074671,3.2261,155.01,154.98,18.7066]
[1729096075571,3.2263,155.0,154.98,18.7066]
[1729096075871,3.2263,155.0,154.98,15.48]
[1729096076071,3.2264,155.0,154.98,15.48]
[1729096076567,3.2264,155.0,154.98,18.7066]
[1729096083979,5.24,155.12,154.99,20.72]
[1729096084182,5.24,155.12,155.03,15.48]
[1729096084378,5.24,155.12,155.07,15.48]
[1729096084678,3.2245,155.09,155.07,15.48]
[1729096085073,3.2246,155.08,155.07,18.71806683]
[1729096085577,3.2246,155.08,155.07,3.23806683]
[1729096085777,3.2248,155.07,155.05,18.7051]
[1729096085974,5.24,155.12,155.05,3.14772619]
[1729096086179,15.48,155.11,155.02,15.48]
[1729096086380,15.48,155.11,155.0,22.1241]
[1729096086580,15.48,155.11,155.01,3.226]
[1729096086978,3.2256,155.04,155.0,25.30150954]
[1729096087184,5.24,155.07,155.0,28.52770954]
[1729096087382,5.24,155.07,155.0,25.30150954]
[1729096088580,5.24,155.07,155.0,3.17740954]
[1729096088877,3.226,155.02,154.99,6.03]
[1729096089078,3.226,155.02,154.99,9.28916563]
[1729096090085,5.24,155.07,154.99,9.28916563]
[1729096090285,3.226,155.01,154.99,9.28916563]
[1729096090785,5.24,155.02,154.94,15.48]
[1729096090980,5.24,155.01,154.93,2.6659]
[1729096091489,3.2268,154.98,154.94,15.48]
[1729096092097,15.48,155.09,154.96,15.48]
[1729096092283,5.24,155.08,155.0,15.48]
[1729096092485,3.2256,155.04,155.0,18.6368862]
[1729096092803,5.24,155.07,155.02,15.48]
[1729096093182,5.24,155.07,155.02,18.7057]
[1729096093183,3.2253,155.05,155.02,18.7057]
[1729096093590,3.2253,155.05,155.02,21.87000581]
[1729096094583,3.2253,155.05,155.03,3.2256]
[1729096094785,3.2253,155.05,155.02,18.64430581]
[1729096094984,3.2253,155.05,155.03,3.2256]
[1729096095187,3.2251,155.06,155.03,3.2256]
[1729096095388,16.01571889,155.14,155.04,15.48]
[1729096095685,1.1806,155.18,155.09,15.48]
[1729096095881,100.5700305,155.22,155.11,15.48]
[1729096095882,5.24,155.17,155.11,15.48]
[1729096096082,5.24,155.16,155.11,18.7038]
[1729096096483,3.2233,155.14,155.11,18.7038]
[1729096096781,3.2233,155.14,155.11,15.48]
[1729096097889,5.24,155.16,155.11,15.48]
[1729096098086,3.2237,155.12,155.09,21.4846]
[1729096098391,3.2237,155.12,155.09,18.2603]
[1729096098592,5.24,155.16,155.09,18.2603]
[1729096098887,5.24,155.16,155.07,15.48]
[1729096099191,3.2245,155.09,155.05,4.5553]
[1729096104697,5.24,155.12,155.05,1.3301]
[1729096104995,1.0326,155.15,155.06,15.48]
[1729096105186,5.24,155.15,155.11,15.48]
[1729096105383,5.24,155.18,155.11,15.48]
[1729096105587,15.48,155.31,155.07,15.48]
[1729096105588,224.0,155.38,155.17,15.48]
[1729096105788,15.48,155.34,155.23,15.48]
[1729096105991,15.48,155.34,155.24,5.24]
[1729096106196,3.2206,155.28,155.24,8.42145772]
[1729096107293,15.48,155.34,155.24,8.42145772]
[1729096107294,3.2207,155.27,155.24,8.42145772]
[1729096107697,15.48,155.34,155.24,8.42145772]
[1729096107894,3.2204,155.29,155.24,8.42145772]
[1729096108395,3.2205,155.28,155.24,8.42145772]
[1729096109697,26.1295,155.34,155.24,8.42145772]
[1729096110489,3.221,155.26,155.24,8.42145772]
[1729096110692,26.1295,155.34,155.24,8.42145772]
[1729096111094,3.2198,155.31,155.24,8.42145772]
[1729096111299,26.1295,155.34,155.24,8.42145772]
[1729096111698,3.2207,155.27,155.24,8.42145772]
[1729096111897,26.1295,155.34,155.24,8.42145772]
[1729096113004,26.1295,155.34,155.13,4.0365]
[1729096113005,24.72,155.26,155.13,4.0365]
[1729096113206,4.1438,155.25,155.14,5.24]
[1729096113404,3.2228,155.17,155.14,5.24]
[1729096113899,3.2228,155.17,155.14,8.4633]
[1729096115003,3.223,155.16,155.15,5.24]
[1729096115210,24.72,155.23,155.15,5.24]
[1729096115395,24.72,155.23,155.11,24.72]
[1729096115596,3.2233,155.15,155.12,8.4637]
[1729096115805,24.72,155.23,155.12,5.24]
[1729096116219,3.2229,155.16,155.13,3.2234]
[1729096117101,24.72,155.23,155.11,24.72]
[1729096117395,24.72,155.23,155.12,5.24]
[1729096117797,3.2231,155.16,155.12,8.4636]
[1729096118400,3.2231,155.15,155.12,8.4636]
[1729096120897,3.2232,155.15,155.12,5.24]
[1729096121407,3.223,155.16,155.12,8.4636]
[1729096122708,3.2231,155.15,155.12,8.4636]
[1729096123200,3.2235,155.14,155.1,3.224]
[1729096123506,3.2235,155.14,155.11,5.26]
[1729096123707,3.2235,155.14,155.11,8.4839]
[1729096126199,3.17709544,155.2,155.09,27.5312]
[1729096126502,24.72,155.21,155.1,5.26]
[1729096126704,3.22222922,155.2,155.09,31.374]
[1729096127499,3.2239,155.12,155.09,34.5983]
[1729096127801,3.2239,155.12,155.09,25.3583]
[1729096129218,3.2242,155.1,155.09,15.48]
[1729096129405,3.2242,155.1,155.08,8.54304507]
[1729096129614,3.2242,155.1,155.08,5.26]
[1729096129908,18.1303,155.17,155.08,5.26]
[1729096129909,3.224,155.11,155.08,5.26]
[1729096130313,3.224,155.11,155.08,8.4845]
[1729096130511,3.224,155.11,155.09,15.48]
[1729096130710,3.224,155.11,155.09,18.6864324]
[1729096132414,3.2242,155.1,155.09,18.6864324]
[1729096132611,3.2242,155.1,155.09,3.2064324]
[1729096132812,5.26,155.14,155.06,20.74]
[1729096133007,3.2247,155.08,155.06,20.74]
[1729096133522,5.26,155.14,155.05,5.26]
[1729096134217,3.2247,155.08,155.05,8.4851]
[1729096134611,5.26,155.14,155.05,8.4851]
[1729096135521,3.2248,155.07,155.05,8.4851]
[1729096136917,5.26,155.14,155.05,5.26]
[1729096137118,5.26,155.15,155.09,15.48]
[1729096137319,2.6503,155.17,155.11,15.48]
[1729096137520,3.2234,155.14,155.11,18.7038]
[1729096137813,1.3132,155.17,155.11,18.7038]
[1729096138015,3.2237,155.12,155.11,15.48]
[1729096141120,3.2236,155.13,155.11,15.48]
[1729096142013,3.224,155.11,155.09,18.66702876]
[1729096142218,3.224,155.11,155.09,15.48]
[1729096142823,3.224,155.11,155.09,18.64548372]
[1729096143015,3.224,155.11,155.09,21.86988372]
[1729096144631,20.74,155.15,155.09,3.16548372]
[1729096144821,20.74,155.15,155.07,15.48]
[1729096145624,3.2246,155.08,155.07,15.48]
[1729096146333,6.5839,155.15,155.07,15.48]
[1729096146523,6.5732,155.17,155.09,15.48]
[1729096146716,6.5732,155.17,155.11,15.48]
[1729096146916,6.6073,155.18,155.11,15.48]
[1729096147116,3.2234,155.14,155.11,18.63638735]
[1729096147629,3.2234,155.14,155.11,21.86028735]
[1729096147817,3.2237,155.12,155.11,3.15638735]
[1729096148022,15.48,155.17,155.09,5.26]
[1729096148223,15.48,155.17,155.09,8.54346855]
[1729096150227,3.2239,155.12,155.09,8.54346855]
[1729096150823,3.2239,155.12,155.09,27.24776855]
[1729096151527,3.224,155.11,155.09,27.24776855]
[1729096151730,6.6073,155.18,155.09,27.24776855]
[1729096152233,3.2239,155.12,155.09,27.24776855]
[1729096153628,3.2241,155.11,155.09,24.02346855]
[1729096153825,5.24,155.14,155.05,15.48]
[1729096154134,15.48,155.13,155.05,5.24]
[1729096154438,3.2249,155.07,155.05,5.24]
[1729096154632,16.8783,155.13,155.01,24.00659257]
[1729096154633,15.48,155.11,155.01,24.00659257]
[1729096154835,3.2256,155.04,155.01,23.9459]
[1729096155328,3.2256,155.04,155.01,27.1266876]
[1729096156236,3.2256,155.04,155.01,21.8866876]
[1729096156831,3.2258,155.02,155.01,3.1807876]
[1729096157029,16.8625,155.09,154.98,23.5002]
[1729096157329,3.2264,154.99,154.98,3.20013938]
[1729096157539,3.2264,154.99,154.95,20.72]
[1729096158034,5.24,155.03,154.95,18.65336942]
[1729096158728,3.2268,154.98,154.95,18.65336942]
[1729096159740,5.24,155.03,154.95,18.65336942]
[1729096160036,3.2269,154.97,154.95,18.65336942]
[1729096163032,5.24,155.03,154.95,21.88056942]
[1729096163229,5.24,155.02,154.97,15.48]
[1729096163734,3.2265,154.99,154.97,15.48]
[1729096163931,3.2265,154.99,154.97,18.72535725]
[1729096164332,3.2267,154.98,154.97,3.24535725]
[1729096164537,5.24,155.02,154.94,15.48]
[1729096165139,5.24,155.02,154.94,18.64447722]
[1729096165439,3.2266,154.99,154.96,3.227]
[1729096165639,5.24,155.02,154.94,23.88447722]
[1729096166041,3.2268,154.98,154.95,3.2272]
[1729096167134,5.24,155.02,154.94,18.64447722]
[1729096167337,5.24,155.02,154.94,3.16447722]
[1729096167534,5.24,155.02,154.93,6.6182]
[1729096167535,3.227,154.97,154.93,6.6182]
[1729096167945,3.227,154.97,154.93,9.90636356]
[1729096168539,3.227,154.97,154.93,13.13386356]
[1729096168742,3.2271,154.96,154.93,13.13386356]
[1729096169338,3.2271,154.96,154.93,9.90636356]
[1729096169945,3.2271,154.96,154.93,13.13396356]
[1729096170745,5.24,155.02,154.95,3.2272]
[1729096171039,5.24,155.02,154.95,15.48]
[1729096171242,3.2266,154.99,154.96,3.227]
[1729096174047,3.2264,155.0,154.95,15.48]
[1729096174238,15.48,155.07,154.97,15.48]
[1729096174747,5.24,155.06,154.97,15.48]
[1729096175150,3.2259,155.02,154.99,3.2264]
[1729096175345,5.24,155.06,154.97,15.48]
[1729096175850,3.2261,155.01,154.98,3.2266]
[1729096177850,2.7507,155.08,154.99,3.2264]
[1729096178052,5.24,155.08,155.01,15.48]
[1729096178346,116.09906256,155.13,155.06,3.225]
[1729096178552,3.2246,155.08,155.03,15.48]
[1729096179050,3.2247,155.08,155.05,3.2251]
[1729096179246,5.24,155.12,155.03,15.48]
[1729096180557,100.61906256,155.13,155.05,15.48]
[1729096180854,105.85906256,155.13,155.05,15.48]
[1729096181054,3.2246,155.08,155.05,15.48]
[1729096182452,3.2246,155.08,155.05,18.7051]
[1729096182754,3.2251,155.06,155.03,15.48]
[1729096183053,3.2251,155.06,155.03,18.7055]
[1729096183442,121.33906256,155.13,155.03,15.48]
[1729096183647,15.48,155.11,155.02,4.6509]
[1729096184154,3.2253,155.05,155.02,4.6509]
[1729096185651,3.2248,155.07,155.01,6.47395364]
[1729096185852,15.48,155.08,155.01,3.24795364]
[1729096186048,15.48,155.08,154.99,5.24]
[1729096186248,3.2257,155.03,155.0,3.2261]
[1729096186650,15.48,155.08,155.0,3.2261]
[1729096186852,3.2257,155.03,155.0,3.2261]
[1729096187058,15.48,155.08,154.98,7.999]
[1729096187249,18.2842,155.08,154.99,3.2264]
[1729096187451,3.2261,155.01,154.98,2.759]
[1729096187751,3.2261,155.01,154.98,5.9855]
[1729096187951,3.2261,155.01,154.98,2.759]
[1729096189551,3.2261,155.01,154.99,3.2264]
[1729096190857,3.2261,155.01,154.98,2.759]
[1729096191065,3.2261,155.01,154.98,5.9855]
[1729096191358,3.2261,155.01,154.98,2.759]
[1729096192561,3.2261,155.01,154.99,3.2264]
[1729096193560,15.48,155.04,154.95,20.72]
[1729096194159,3.2268,154.98,154.95,18.7072]
[1729096194359,3.2268,154.98,154.95,21.9653655]
[1729096194561,15.48,155.04,154.95,21.9653655]
[1729096195057,3.2268,154.98,154.95,21.9653655]
[1729096196159,3.2266,154.99,154.96,3.2269]
[1729096196350,5.24,155.05,154.97,15.48]
[1729096196551,5.24,155.05,154.99,15.48]
[1729096197563,3.2256,155.04,155.01,3.2259]
[1729096197859,5.24,155.05,155.01,3.2259]
[1729096199556,3.2256,155.03,155.01,3.2259]
[1729096200262,3.2253,155.05,155.02,3.2257]
[1729096200462,2.2489791,155.11,155.04,15.48]
[1729096200684,102.06606256,155.13,155.06,15.48]
[1729096200685,100.61906256,155.13,155.06,15.48]
[1729096200866,100.61906256,155.13,154.98,4.55963648]
[1729096200867,3.2237,155.13,155.09,3.2242]
[1729096201159,3.2237,155.13,155.1,15.48]
[1729096201461,3.2238,155.12,155.1,15.48]
[1729096202063,3.2238,155.12,155.1,18.75463231]
[1729096203059,3.224,155.11,155.1,3.27463231]
[1729096203265,15.48,155.14,155.05,24.7689]
[1729096203572,15.48,155.14,155.05,4.0489]
[1729096203756,15.48,155.14,155.05,2.7312]
[1729096204160,3.2247,155.08,155.05,2.7312]
[1729096204975,3.2248,155.07,155.05,1.3601]
[1729096205872,20.72,155.12,155.05,1.3601]
[1729096206160,20.72,155.12,154.78,16.1534]
[1729096206161,15.48,155.08,154.97,15.48]
[1729096206361,20.72,155.08,154.99,5.24]
[1729096206663,20.72,155.08,154.99,3.26949567]
[1729096206963,15.48,155.05,154.97,20.72]
[1729096207671,3.2265,154.99,154.97,3.30345249]
[1729096207858,3.2265,154.99,154.96,3.2269]
[1729096208062,3.2265,154.99,154.96,6.40713026]
[1729096208660,5.24,155.04,154.96,3.18023026]
[1729096208856,30.03,155.04,154.91,24.79]
[1729096209061,24.79,155.01,154.91,3.29087221]
[1729096209272,3.2276,154.94,154.91,3.2281]
[1729096209472,5.24,154.96,154.82,3.29656857]
[1729096209772,3.2287,154.89,154.84,3.2294]
[1729096210160,5.24,154.91,154.83,7.36178941]
[1729096210357,3.2286,154.89,154.83,7.36178941]
[1729096210565,5.24,154.91,154.83,7.36178941]
[1729096210974,3.2291,154.87,154.83,7.36178941]
[1729096211466,5.24,154.91,154.83,7.36178941]
[1729096211669,24.79,154.88,154.75,28.9826]
[1729096211971,5.24,154.87,154.76,1.18685603]
[1729096212469,5.24,154.87,154.75,28.9826]
[1729096212676,3.2299,154.83,154.78,3.2308]
[1729096212874,3.2299,154.83,154.78,3.29675942]
[1729096213074,5.24,154.87,154.78,3.29675942]
[1729096213271,5.24,154.87,154.75,28.9826]
[1729096213667,3.23,154.82,154.77,3.231]
[1729096213976,3.23,154.82,154.77,3.30491702]
[1729096214183,3.23,154.82,154.75,28.9826]
[1729096214478,3.23,154.82,154.77,3.231]
[1729096214773,5.24,154.87,154.77,6.41251967]
[1729096214974,3.2302,154.82,154.77,3.18151967]
[1729096215174,3.2302,154.82,154.77,3.231]
[1729096215473,3.2302,154.82,154.77,6.5019989]
[1729096216367,3.2302,154.82,154.78,3.2306]
[1729096216568,3.2297,154.84,154.78,24.79]
[1729096217169,3.2297,154.84,154.78,28.00038495]
[1729096217371,3.2297,154.84,154.8,3.2304]
[1729096217871,24.79,154.91,154.78,28.00038495]
[1729096218072,5.24,154.9,154.82,3.2299]
[1729096218264,5.24,154.89,154.82,3.2299]
[1729096218468,3.2293,154.86,154.82,3.2299]
[1729096218680,5.24,154.89,154.8,24.79]
[1729096218992,5.24,154.89,154.81,3.2301]
[1729096219166,5.24,154.89,154.78,28.00038495]
[1729096219370,5.24,154.89,154.78,3.21038495]
[1729096219371,24.79,154.88,154.78,3.21038495]
[1729096219573,24.79,154.88,154.75,34.2226]
[1729096219777,2.8113,154.87,154.75,34.2226]
[1729096219979,3.2304,154.8,154.76,3.2312]
[1729096220188,5.24,154.83,154.75,34.2226]
[1729096222284,3.2306,154.8,154.76,3.2312]
[1729096222482,5.24,154.83,154.75,28.9826]
[1729096222679,3.2298,154.84,154.79,3.2304]
[1729096222882,5.24,154.84,154.79,3.26615697]
[1729096223176,5.24,154.84,154.78,24.79]
[1729096223378,5.24,154.86,154.81,24.79]
[1729096223581,5.24,154.89,154.81,24.79]
[1729096223779,3.229,154.87,154.83,3.2297]
[1729096223983,3.229,154.87,154.81,24.79]
[1729096224482,5.24,154.89,154.81,24.79]
[1729096224690,3.2289,154.88,154.84,3.2294]
[1729096224983,5.24,154.9,154.84,24.79]
[1729096225183,5.24,154.93,154.86,24.79]
[1729096225480,5.24,154.93,154.87,1.3717]
[1729096225687,3.2282,154.91,154.87,4.6005]
[1729096226386,3.2282,154.91,154.87,7.8741225]
[1729096226790,3.2279,154.92,154.89,3.2285]
[1729096227886,3.2277,154.94,154.91,3.2281]
[1729096228280,3.2277,154.94,154.89,24.79]
[1729096228486,3.2277,154.94,154.87,4.6453225]
[1729096228888,5.24,154.96,154.87,4.6453225]
[1729096229088,5.24,154.96,154.9,24.79]
[1729096229279,8.4671,154.96,154.9,24.79]
[1729096229480,5.24,154.96,154.94,3.2273]
[1729096229692,69.74,155.01,154.94,3.2273]
[1729096229885,3.2268,154.98,154.9,24.79]
[1729096230084,3.2268,154.98,154.95,3.2271]
[1729096230387,1.3644,155.04,154.92,5.24]
[1729096230588,3.2261,155.01,154.94,24.79]
[1729096230793,3.2261,155.01,154.95,1.4157]
[1729096230992,3.2261,155.01,154.95,4.57744388]
[1729096231186,5.24,155.03,154.95,1.4157]
[1729096231496,5.24,155.03,154.97,3.2267]
[1729096231694,5.24,155.03,154.95,4.59713216]
[1729096231887,5.24,155.03,154.92,24.79]
[1729096231888,3.2271,154.96,154.92,3.2278]
[1729096232087,5.24,154.99,154.88,4.2267]
[1729096232395,5.24,154.99,154.89,5.24]
[1729096232583,5.24,154.99,154.91,3.2281]
[1729096232783,30.03,154.99,154.89,3.24211217]
[1729096232997,3.2279,154.92,154.88,7.4553]
[1729096233196,1.3141,154.98,154.88,4.2267]
[1729096233389,5.24,154.95,154.88,4.58518421]
[1729096234286,5.24,154.95,154.88,3.16948421]
[1729096234494,3.2285,154.9,154.85,8.051]
[1729096234997,3.2286,154.89,154.85,11.26664332]
[1729096235387,5.24,154.95,154.85,11.26664332]
[1729096235388,24.79,154.94,154.85,6.02664332]
[1729096236385,3.229,154.87,154.85,6.02664332]
[1729096236584,3.229,154.87,154.77,1.4196]
[1729096236585,5.24,154.91,154.77,1.4196]
[1729096236789,3.2297,154.84,154.78,33.95314378]
[1729096236990,5.24,154.91,154.78,32.7663]
[1729096237190,3.2301,154.82,154.78,35.9971]
[1729096237799,5.24,154.86,154.78,35.9971]
[1729096238104,3.2299,154.83,154.78,35.9971]
[1729096238799,5.24,154.86,154.78,35.9971]
[1729096238997,5.24,154.86,154.78,32.7663]
[1729096239198,5.24,154.86,154.77,1.4196]
[1729096240302,3.2305,154.8,154.77,1.4196]
[1729096240500,5.24,154.86,154.76,24.79]
[1729096240705,3.231,154.78,154.74,9.3525]
[1729096241095,5.24,154.82,154.74,4.1125]
[1729096241297,3.2313,154.76,154.74,4.1125]
[1729096242093,3.2305,154.8,154.75,3.2314]
[1729096242402,5.24,154.82,154.74,4.1125]
[1729096242901,5.24,154.82,154.75,24.79]
[1729096243300,3.2303,154.81,154.77,3.2308]
[1729096243601,3.2303,154.81,154.75,24.79]
[1729096243913,3.2303,154.81,154.77,3.2309]
[1729096244508,8.47,154.82,154.78,3.2307]
[1729096244805,5.24,154.86,154.78,24.79]
[1729096245205,8.4693,154.86,154.81,24.79]
[1729096245502,1.4473,154.9,154.81,27.94894145]
[1729096245703,5.24,154.89,154.84,3.2294]
[1729096246208,3.2291,154.87,154.84,3.2294]
[1729096246908,3.2292,154.86,154.83,3.2297]
[1729096249302,5.24,154.89,154.82,1.3295]
[1729096249908,3.2297,154.84,154.82,1.3295]
[1729096250612,3.229,154.87,154.83,3.2296]
[1729096250803,3.229,154.87,154.82,1.3295]
[1729096250999,5.24,154.89,154.82,1.3295]
[1729096251199,3.2295,154.85,154.81,6.38894145]
[1729096251404,3.2295,154.85,154.81,3.23]
[1729096251802,3.2296,154.84,154.81,3.23]
[1729096251998,3.2296,154.84,154.81,6.49542176]
[1729096252211,3.2296,154.84,154.81,3.23]
[1729096252409,3.23,154.82,154.81,3.28608898]
[1729096252707,3.23,154.82,154.79,33.2605]
[1729096253210,3.23,154.82,154.79,8.4705]
[1729096253416,3.2299,154.83,154.79,8.4705]
[1729096256512,3.23,154.82,154.79,8.4705]
[1729096257614,3.2295,154.85,154.79,30.03]
[1729096257813,5.24,154.88,154.81,24.79]
[1729096258116,5.24,154.88,154.83,3.2298]
[1729096258511,3.2293,154.86,154.83,3.2298]
[1729096258907,5.24,154.88,154.81,3.2608867]
[1729096259110,3.2297,154.84,154.79,30.03]
[1729096259617,5.24,154.88,154.81,3.2301]
[1729096259811,3.2298,154.83,154.81,6.49142513]
[1729096260012,3.2298,154.83,154.81,3.2301]
[1729096260214,5.24,154.88,154.81,3.2301]
[1729096260519,3.2297,154.84,154.81,6.39064931]
[1729096261019,3.2293,154.86,154.83,3.2296]
[1729096261517,8.4688,154.88,154.86,3.2291]
[1729096261721,5.24,154.88,154.82,24.79]
[1729096261916,5.24,154.88,154.82,28.02506677]
[1729096262117,5.24,154.88,154.82,3.23506677]
[1729096262322,5.24,154.88,154.79,5.24]
[1729096262823,5.24,154.88,154.78,1.3845]
[1729096263025,24.79,154.87,154.78,1.3845]
[1729096263221,24.79,154.87,154.76,3.2311]
[1729096263428,24.79,154.85,154.74,5.24]
[1729096263615,5.24,154.84,154.74,5.24]
[1729096263816,3.2312,154.77,154.74,8.4716]
[1729096264119,3.2312,154.77,154.74,3.2316]
[1729096264312,30.03,154.8,154.71,3.25198992]
[1729096264512,6.6446,154.79,154.67,24.79]
[1729096264731,24.79,154.77,154.67,3.17241233]
[1729096265023,1.3616,154.76,154.65,2.808]
[1729096265224,5.24,154.75,154.65,6.08576085]
[1729096265420,3.2323,154.71,154.65,2.808]